bitfinex/quotes_ETHUSD_20251012
["timestamp","ask_amount","ask_price","bid_price","bid_amount"]
[1760290424494,1.92,4136.8,4136.2,2.41766726]
[1760290424707,2.331244,4137.6,4135.8,0.4482]
[1760290424894,0.1208,4136.9,4136.2,0.1208]
[1760290425099,0.1208,4136.9,4136.6,2.41744381]
[1760290425307,1.92,4137.8,4135.0,2.41837968]
[1760290425539,2.41700184,4137.4,4136.3,2.41760118]
[1760290425827,2.0202,4137.3,4136.3,2.41760118]
[1760290426125,2.146981,4137.2,4136.2,2.41766047]
[1760290426334,2.146981,4137.2,4136.3,2.4175715]
[1760290426493,0.1002,4138.0,4136.2,0.6898]
[1760290427135,0.099,4138.6,4136.5,0.6336]
[1760290427441,0.099,4139.1,4137.2,2.41709368]
[1760290427600,0.099,4139.1,4138.1,2.41652352]
[1760290427933,4.178,4138.7,4138.1,2.41652352]
[1760290428133,0.099,4138.7,4138.1,2.41652352]
[1760290428295,2.41648433,4138.3,4136.1,0.4378]
[1760290428491,4.077466,4138.2,4137.4,2.4169259]
[1760290428700,0.099,4138.2,4137.2,2.41704864]
[1760290429003,0.33901746,4138.9,4136.1,2.41768387]
[1760290429004,0.1602,4137.3,4136.1,2.41768387]
[1760290429205,2.51670121,4137.2,4136.1,2.41768627]
[1760290429402,2.41715784,4137.1,4136.1,2.41768627]
[1760290429606,1.92,4137.1,4136.1,2.41768627]
[1760290430042,1.92,4137.1,4136.2,2.41766927]
[1760290430242,2.41728056,4136.9,4135.1,0.4378]
[1760290430413,4.59575,4136.9,4136.0,2.41778332]
[1760290430814,4.59575,4136.9,4136.1,2.41773305]
[1760290431041,0.0996,4137.0,4136.2,2.41765581]
[1760290431194,0.0996,4137.0,4135.5,1.0714]
[1760290431399,0.0996,4137.0,4136.3,2.41761227]
[1760290431600,0.0996,4137.0,4135.5,0.4378]
[1760290431810,0.1602,4137.3,4136.4,2.41755313]
[1760290432015,0.1602,4137.3,4135.9,2.41780733]
[1760290432518,0.1602,4137.3,4135.6,2.41802882]
[1760290432721,0.1596,4137.8,4136.8,2.41729385]
[1760290432926,8.81897754,4137.7,4136.3,2.41760188]
[1760290433115,0.1596,4137.8,4135.2,0.4378]
[1760290433116,8.183496,4137.4,4135.4,2.41814576]
[1760290433437,0.1002,4137.3,4135.5,0.4378]
[1760290433638,0.1596,4137.8,4135.8,0.6336]
[1760290433929,0.159,4138.2,4136.3,0.002]
[1760290434136,0.159,4138.2,4136.5,0.6336]
[1760290434303,30.0,4138.7,4137.9,2.41663427]
[1760290434505,0.00284296,4138.8,4137.9,2.41663192]
[1760290434747,1.92,4138.6,4137.6,2.41685447]
[1760290434944,0.1014,4138.7,4137.9,2.41663573]
[1760290435141,0.1014,4138.7,4138.0,2.41661809]
[1760290435312,0.1208,4138.3,4137.6,0.1208]
[1760290435511,0.1208,4137.9,4137.5,2.4168721]
[1760290435707,0.1014,4137.8,4137.5,2.4168721]
[1760290436135,0.1014,4137.8,4137.6,2.4168494]
[1760290436301,0.1208,4137.9,4137.7,2.4168016]
[1760290436502,0.1208,4137.9,4137.2,0.1208]
[1760290436750,0.1014,4138.3,4137.8,2.41673742]
[1760290436914,0.1014,4138.7,4137.0,0.4378]
[1760290437120,0.00284296,4138.8,4137.3,2.41703526]
[1760290437427,0.00284296,4138.8,4138.7,2.41621765]
[1760290438208,0.00284296,4138.8,4137.6,0.4378]
[1760290438406,0.00284296,4138.8,4137.7,2.4168016]
[1760290438609,0.00284296,4138.8,4138.7,2.41621765]
[1760290441448,0.001,4139.5,4139.4,2.41580905]
[1760290441949,0.001,4139.5,4139.4,2.85360905]
[1760290442313,0.001,4139.5,4139.4,3.48720905]
[1760290442633,0.001,4140.4,4140.3,2.41528391]
[1760290442939,0.001,4140.4,4140.3,3.04888391]
[1760290443250,0.001,4140.4,4139.7,15.40983315]
[1760290443415,0.001,4140.4,4140.0,2.4154066]
[1760290443612,0.001,4140.4,4139.7,15.17333315]
[1760290444025,0.001,4140.4,4140.1,2.41535207]
[1760290444214,0.001,4140.4,4139.7,15.17333315]
[1760290444414,0.001,4140.4,4140.1,2.41537312]
[1760290444747,0.001,4140.4,4138.9,0.4378]
[1760290444950,0.001,4140.4,4139.2,17.58920334]
[1760290445158,0.001,4140.4,4139.8,2.41552956]
[1760290445356,0.001,4140.4,4140.0,2.41541403]
[1760290445715,0.1019,4140.4,4139.5,2.41575069]
[1760290446061,0.001,4140.4,4139.6,2.41569233]
[1760290446412,5.391413,4140.2,4138.1,0.2365]
[1760290446613,0.12,4139.4,4138.7,0.1208]
[1760290446876,0.12,4139.2,4137.9,0.4378]
[1760290447045,0.1007,4139.3,4138.6,2.4162728]
[1760290447211,0.1007,4139.3,4138.3,2.41640825]
[1760290447212,0.1208,4138.6,4138.5,2.41633442]
[1760290447526,0.2215,4138.6,4136.8,0.4378]
[1760290447721,0.1007,4138.6,4137.5,2.41690111]
[1760290447924,0.1208,4137.9,4137.2,0.1208]
[1760290448188,0.1578,4137.8,4137.2,0.1208]
[1760290448461,0.1578,4137.8,4136.3,0.4398]
[1760290448616,0.1208,4137.7,4137.6,2.41680841]
[1760290448816,0.1208,4137.7,4137.3,0.967]
[1760290448817,0.1013,4137.7,4137.3,0.967]
[1760290449036,0.1013,4138.8,4137.3,0.4378]
[1760290449223,0.0818,4139.7,4137.2,0.1208]
[1760290449224,0.1208,4137.9,4137.2,0.1208]
[1760290449417,0.1567,4137.8,4137.6,2.41685794]
[1760290449743,0.1029,4138.6,4137.8,2.41669546]
[1760290450114,0.1029,4138.6,4137.9,2.41667311]
[1760290450748,0.1029,4138.6,4138.5,2.41633442]
[1760290450918,0.1029,4138.6,4137.2,0.4378]
[1760290451119,0.1029,4138.6,4138.5,2.41633442]
[1760290451352,0.1029,4139.5,4139.0,2.41600569]
[1760290451641,0.1029,4139.5,4137.9,2.41668479]
[1760290451642,0.1029,4139.4,4137.2,2.41709368]
[1760290451847,0.1029,4139.4,4138.9,2.41607839]
[1760290452045,0.1029,4139.4,4138.7,2.41616751]
[1760290452245,0.1029,4139.4,4138.1,2.41655666]
[1760290452561,0.1029,4139.4,4137.5,0.6336]
[1760290452849,0.0818,4139.7,4139.5,2.41572345]
[1760290453145,0.1037,4140.4,4138.5,0.6336]
[1760290453364,0.001,4140.4,4138.9,0.6336]
[1760290453516,0.001,4140.4,4139.9,2.415494]
[1760290453713,0.1027,4140.3,4138.1,0.6743]
[1760290453949,0.1027,4140.3,4138.2,1.0714]
[1760290454146,0.1027,4140.3,4140.1,2.41539911]
[1760290454318,0.1027,4140.3,4140.0,2.41544952]
[1760290454518,0.1027,4140.2,4138.7,0.4378]
[1760290455065,0.001,4140.4,4140.3,2.41528391]
[1760290455416,0.1037,4140.4,4138.4,2.41637193]
[1760290455646,0.001,4140.4,4140.3,2.41528391]
[1760290456047,0.001,4140.4,4139.0,0.4378]
[1760290456252,0.001,4140.4,4139.1,0.6336]
[1760290456427,0.001,4140.4,4140.3,2.41528391]
[1760290458727,0.001,4140.4,4139.8,0.4468]
[1760290459058,0.001,4140.4,4139.3,0.6336]
[1760290459223,0.001,4140.4,4140.3,2.41528391]
[1760290459540,0.001,4140.4,4139.1,0.4468]
[1760290459541,0.001,4140.4,4139.9,0.12]
[1760290459738,0.001,4140.4,4140.3,2.41528391]
[1760290461463,0.1037,4140.4,4138.1,0.2365]
[1760290461624,2.106437,4140.3,4138.1,0.2365]
[1760290461930,2.0227,4140.2,4139.3,2.41585456]
[1760290462126,0.1027,4140.1,4139.3,2.41585456]
[1760290462351,0.1027,4140.0,4139.4,2.4158051]
[1760290462516,0.0822,4139.9,4138.2,2.41650959]
[1760290462933,0.0822,4139.9,4139.5,2.41574282]
[1760290463134,0.1025,4139.8,4139.5,2.41574282]
[1760290463329,0.001,4140.4,4140.0,2.41540961]
[1760290463519,0.001,4140.4,4138.9,0.4468]
[1760290463722,0.001,4140.4,4140.0,2.41540603]
[1760290464247,0.001,4140.4,4139.8,2.41556264]
[1760290464248,0.1023,4140.3,4138.7,2.41620167]
[1760290464552,0.1023,4140.3,4139.8,2.41556546]
[1760290464751,0.1023,4140.3,4138.7,2.41620167]
[1760290464752,0.0826,4139.9,4139.3,2.41581624]
[1760290464956,0.1021,4139.8,4138.2,2.41650959]
[1760290465154,0.1021,4139.8,4139.5,2.41574573]
[1760290465358,0.0826,4139.9,4139.5,2.41574573]
[1760290465563,0.1021,4139.7,4138.3,2.41645119]
[1760290465852,0.1021,4139.7,4139.5,2.41572589]
[1760290466023,0.1021,4139.6,4139.5,2.41572589]
[1760290466425,0.1021,4139.6,4138.7,2.41619164]
[1760290466637,0.1021,4139.5,4138.0,2.41662638]
[1760290466836,0.1021,4139.5,4138.4,2.4163736]
[1760290467243,2.674,4139.4,4137.3,2.5536]
[1760290467443,0.1021,4139.5,4139.1,2.41593309]
[1760290467643,0.0826,4139.9,4139.1,2.41593309]
[1760290467644,1.92,4139.7,4139.1,2.41593309]
[1760290467873,0.1021,4139.4,4139.1,2.41593309]
[1760290468168,0.1021,4139.3,4138.9,2.4160466]
[1760290468472,0.1021,4139.2,4137.9,2.41668479]
[1760290468639,0.1021,4139.2,4138.8,2.41611865]
[1760290468837,0.1021,4139.2,4138.9,2.41610089]
[1760290469474,0.1021,4139.2,4139.0,2.41604252]
[1760290469851,0.1021,4139.2,4139.1,2.41598415]
[1760290470952,0.1021,4139.2,4138.5,2.41629695]
[1760290470953,0.0826,4139.9,4138.5,2.41629695]
[1760290471458,0.12,4139.2,4139.1,2.41598415]
[1760290473578,0.2221,4139.2,4139.1,2.41598415]
[1760290473760,0.2221,4139.2,4138.5,0.1208]
[1760290473942,0.1021,4139.2,4138.3,0.002]
[1760290474144,0.1021,4139.2,4138.4,2.4163928]
[1760290474345,0.6336,4139.8,4138.4,2.4163928]
[1760290474549,2.0026,4139.9,4138.3,0.002]
[1760290474550,0.1021,4139.1,4138.3,0.002]
[1760290474777,0.1021,4139.1,4138.7,2.41618223]
[1760290475076,0.1021,4139.0,4138.3,0.002]
[1760290475683,8.623006,4139.6,4139.3,2.41583601]
[1760290475884,0.1031,4140.4,4140.0,2.41544862]
[1760290476084,0.001,4140.4,4140.3,2.41528391]
[1760290476955,0.001,4140.4,4140.3,2.86208391]
[1760290477453,0.001,4140.4,4140.1,2.41534868]
[1760290477676,0.001,4140.4,4139.2,2.41592578]
[1760290477873,0.001,4140.4,4140.3,2.41528391]
[1760290478672,0.1029,4140.4,4140.3,2.41528391]
[1760290479079,0.001,4140.4,4140.3,2.41528391]
[1760290480071,0.001,4140.4,4140.3,2.86208391]
[1760290481198,0.001,4140.4,4140.3,2.41528391]
[1760290481374,0.001,4140.4,4140.3,2.86208391]
[1760290482897,0.001,4140.4,4140.3,2.41528391]
[1760290483100,0.001,4140.4,4139.1,0.4468]
[1760290483300,0.001,4140.4,4140.2,2.41534225]
[1760290483301,0.1019,4140.3,4140.2,2.41534225]
[1760290483493,0.001,4140.4,4139.2,2.41592578]
[1760290483808,0.001,4140.4,4140.2,0.12]
[1760290484006,0.001,4140.4,4140.3,2.41528391]
[1760290484386,0.001,4140.4,4140.3,2.88048391]
[1760290484705,0.001,4140.9,4140.3,2.88048391]
[1760290484706,0.001,4140.9,4140.5,0.6336]
[1760290484886,0.001,4142.1,4142.0,2.41429261]
[1760290485086,0.001,4142.9,4142.1,0.6336]
[1760290485384,0.001,4142.9,4142.8,2.41382639]
[1760290485794,0.001,4142.9,4142.8,2.87902639]
[1760290486170,0.001,4142.9,4142.8,3.51262639]
[1760290487307,0.001,4142.9,4142.8,2.87902639]
[1760290487505,0.001,4142.9,4142.8,2.41382639]
[1760290489812,0.001,4142.9,4142.8,2.85842639]
[1760290490198,0.001,4142.9,4142.8,2.41382639]
[1760290491105,0.001,4142.9,4142.8,2.85842639]
[1760290491474,0.001,4142.9,4142.8,3.49202639]
[1760290491688,1e-08,4143.4,4143.3,2.4135351]
[1760290491895,1e-08,4143.4,4143.1,2.41365161]
[1760290491896,1e-08,4143.4,4142.2,3.04774022]
[1760290492101,0.13790001,4143.4,4142.2,2.41417604]
[1760290492303,0.13790001,4143.4,4141.3,2.41464886]
[1760290492635,1.92,4143.2,4141.4,0.4446]
[1760290492833,0.1379,4143.3,4142.7,2.41387817]
[1760290493150,6.23547,4143.2,4142.8,2.41381395]
[1760290493289,0.1379,4143.1,4142.8,2.41381395]
[1760290493491,0.1379,4143.0,4142.9,2.41375051]
[1760290493805,0.1379,4143.0,4142.8,2.41381417]
[1760290493806,0.12,4142.9,4142.8,2.41381417]
[1760290494010,0.1379,4142.9,4142.8,2.41381417]
[1760290494807,1e-08,4143.4,4142.1,2.41418488]
[1760290495121,1e-08,4143.4,4140.7,4.33504638]
[1760290495122,1e-08,4143.4,4143.3,2.4135351]
[1760290495492,0.13790001,4143.4,4143.3,2.4135351]
[1760290496624,0.12,4143.3,4142.6,0.12]
[1760290496918,0.12,4143.3,4143.2,2.41359335]
[1760290497630,8.617384,4143.2,4142.6,0.12]
[1760290497936,8.617384,4143.2,4141.4,0.4446]
[1760290497937,0.12,4143.0,4142.2,0.12]
[1760290498137,0.12,4142.7,4142.2,0.12]
[1760290498499,0.1379,4142.6,4142.3,2.41411776]
[1760290498690,0.1379,4142.6,4142.5,2.4140012]
[1760290499225,0.1379,4142.6,4142.2,2.41415889]
[1760290499226,5.926924,4142.5,4142.2,2.41415889]
[1760290499399,0.1379,4142.4,4142.2,2.41415889]
[1760290499729,0.12,4142.2,4142.1,2.41421914]
[1760290499930,0.2579,4142.2,4142.1,2.41421914]
[1760290500332,1.92000001,4143.4,4142.1,2.41421914]
[1760290500333,1e-08,4143.4,4142.1,0.4446]
[1760290500516,0.12000001,4143.4,4142.7,0.12]
[1760290500739,0.12000001,4143.4,4143.3,2.4135351]
[1760290501601,0.25790001,4143.4,4143.3,2.4135351]
[1760290501932,0.12000001,4143.4,4143.3,2.4135351]
[1760290502099,1e-08,4143.4,4143.3,2.4135351]
[1760290502299,1e-08,4143.4,4143.3,2.8581351]
[1760290502524,1e-08,4143.4,4143.3,3.4917351]
[1760290502724,1e-08,4143.4,4143.3,5.4117351]
[1760290503035,0.001,4143.8,4143.7,4.96690212]
[1760290503736,0.001,4143.8,4143.7,5.41150212]
[1760290504605,0.001,4143.8,4143.3,0.966]
[1760290504842,0.001,4143.8,4143.7,2.41330212]
[1760290505046,0.3659,4143.7,4143.3,0.966]
[1760290505452,0.001,4143.8,4143.3,0.966]
[1760290505747,0.001,4143.8,4143.7,2.41330212]
[1760290506225,0.001,4143.8,4143.7,2.85790212]
[1760290506606,0.001,4143.8,4143.7,2.41330212]
[1760290506937,0.001,4143.8,4143.7,2.85790212]
[1760290507517,0.001,4143.8,4143.7,3.49150212]
[1760290507949,1e-08,4144.7,4144.6,3.04637807]
[1760290508334,1e-08,4144.7,4144.6,2.85737807]
[1760290508615,1e-08,4144.7,4144.6,2.41277807]
[1760290510449,1e-08,4144.7,4144.6,3.49097807]
[1760290510647,1e-08,4145.8,4145.7,2.41213787]
[1760290512050,1e-08,4145.8,4145.7,2.53213787]
[1760290513468,1e-08,4145.8,4145.7,2.97673787]
[1760290515648,1e-08,4145.8,4145.7,2.53213787]
[1760290517174,1e-08,4145.8,4145.7,2.41213787]
[1760290517377,0.09900001,4145.8,4143.6,0.4446]
[1760290517541,1.92,4145.6,4143.7,2.41330212]
[1760290517747,0.099,4145.5,4145.1,2.41248325]
[1760290517972,0.099,4145.4,4143.7,2.41330212]
[1760290518175,1e-08,4145.8,4143.2,0.4344]
[1760290518176,1.92,4145.2,4143.2,0.4344]
[1760290518392,1e-08,4145.8,4143.4,2.41347685]
[1760290518393,0.099,4145.1,4143.4,2.41347685]
[1760290518687,2.271972,4145.0,4143.8,2.41319548]
[1760290518887,2.271972,4145.0,4142.8,0.4364]
[1760290518888,1.92,4144.7,4143.1,2.41362098]
[1760290519044,0.099,4144.9,4143.3,1.4004]
[1760290519246,0.1082,4145.5,4144.7,2.41267411]
[1760290519446,0.1082,4145.4,4144.8,2.41265588]
[1760290519744,0.1082,4145.4,4144.0,2.41308557]
[1760290520075,0.1082,4145.4,4144.9,2.41259532]
[1760290520276,3.261828,4145.6,4143.8,0.4344]
[1760290520477,0.1082,4145.3,4145.0,2.41250547]
[1760290520666,0.1082,4145.2,4145.1,2.41248265]
[1760290520867,0.1082,4145.2,4145.0,2.41253123]
[1760290521068,0.1082,4145.2,4144.3,2.41295273]
[1760290521381,0.1082,4145.2,4143.9,2.41318564]
[1760290521382,0.1082,4145.2,4145.1,2.41248703]
[1760290522247,0.1082,4145.2,4144.4,2.4128945]
[1760290522248,0.1082,4145.2,4144.8,2.41265899]
[1760290522584,1.92,4144.9,4142.8,0.002]
[1760290522744,1.92,4144.9,4144.5,2.41278723]
[1760290522950,0.1082,4144.8,4144.1,2.41303665]
[1760290523152,2.0282,4144.7,4144.1,2.41303665]
[1760290523373,0.1082,4144.6,4144.2,2.41300944]
[1760290523551,0.1082,4144.5,4144.2,2.41300944]
[1760290523752,0.1082,4144.8,4143.6,0.002]
[1760290524049,0.1082,4144.8,4144.4,2.41284646]
[1760290524245,6.246953,4145.2,4144.4,2.41284646]
[1760290524456,0.001,4145.4,4144.2,2.41301095]
[1760290524457,6.81144728,4145.0,4144.2,2.41301095]
[1760290524680,1.92,4144.7,4143.9,2.41313172]
[1760290524978,2.41306002,4144.2,4143.6,0.002]
[1760290525178,8.879003,4143.7,4143.6,0.002]
[1760290525380,4.847143,4143.7,4143.6,0.002]
[1760290525556,0.2192,4143.7,4143.6,2.41536036]
[1760290525756,3.874686,4144.3,4143.8,2.41318909]
[1760290525967,0.1104,4144.4,4143.6,0.002]
[1760290525968,0.1104,4144.2,4143.6,2.41530427]
[1760290526168,0.1104,4144.2,4143.7,2.41328588]
[1760290526476,0.1104,4144.2,4143.6,0.002]
[1760290526477,1.92,4144.0,4143.8,2.41324313]
[1760290526654,2.41279537,4144.6,4143.6,0.002]
[1760290526655,1.92,4144.5,4143.6,0.002]
[1760290526855,0.1104,4144.0,4143.9,2.41314481]
[1760290527066,0.001,4145.4,4143.6,0.002]
[1760290527273,0.12,4145.2,4145.1,2.41248703]
[1760290527656,0.001,4145.4,4145.3,2.41237063]
[1760290527851,6.63762,4145.2,4144.9,2.41257794]
[1760290528051,0.001,4145.4,4144.0,2.41312741]
[1760290528260,0.001,4145.4,4145.1,2.41243312]
[1760290528464,0.1114,4145.4,4145.0,2.41249579]
[1760290528679,0.1104,4145.3,4145.1,2.4124844]
[1760290528986,0.001,4145.4,4145.3,2.41237063]
[1760290529390,0.001,4145.4,4145.3,4.76677063]
[1760290529852,0.001,4145.4,4145.3,4.33237063]
[1760290532067,0.001,4145.4,4145.3,4.76677063]
[1760290532398,0.001,4145.4,4145.3,2.41237063]
[1760290532755,0.001,4145.4,4145.3,2.84677063]
[1760290533687,0.001,4145.4,4145.3,2.41237063]
[1760290533854,0.001,4145.4,4145.3,2.84677063]
[1760290534050,0.001,4145.4,4145.3,2.41237063]
[1760290535449,0.001,4145.4,4145.3,2.84677063]
[1760290536802,0.15867117,4148.0,4145.4,0.6336]
[1760290536950,0.03270001,4148.0,4145.6,0.6336]
[1760290537156,0.03270001,4148.0,4147.7,2.41096807]
[1760290537680,0.12,4147.7,4147.5,2.41104298]
[1760290537851,1.92,4147.5,4146.0,0.6336]
[1760290538049,0.12,4147.3,4147.2,2.41120782]
[1760290538495,1.92,4147.1,4146.6,0.12]
[1760290538653,0.12,4147.0,4145.9,0.12]
[1760290538859,1.92,4147.1,4146.9,2.41143066]
[1760290539071,0.12,4146.9,4146.8,2.41144707]
[1760290539267,0.12,4146.9,4146.2,0.12]
[1760290539268,15.740439,4147.9,4146.5,2.41163097]
[1760290539491,0.12,4146.7,4146.4,2.41172546]
[1760290539787,9.606704,4147.1,4146.3,2.41177479]
[1760290540085,1.92,4147.0,4145.9,2.41198083]
[1760290540385,2.41155027,4146.8,4146.0,2.41193905]
[1760290540578,2.41160416,4146.7,4145.9,2.41200614]
[1760290540780,2.41160416,4146.7,4146.0,2.41195562]
[1760290541083,2.41151016,4146.8,4144.8,0.6336]
[1760290541284,2.41165626,4146.6,4144.9,2.41260344]
[1760290541587,2.41120819,4147.3,4144.8,0.002]
[1760290541787,1.92,4146.1,4144.8,0.002]
[1760290542102,17.53604893,4147.3,4144.8,0.002]
[1760290542103,10.286207,4144.9,4144.8,0.002]
[1760290542423,1.92,4144.9,4144.8,0.002]
[1760290543109,7.209186,4144.9,4144.8,0.002]
[1760290543417,15.90390044,4144.9,4144.8,0.002]
[1760290543628,16.53750044,4144.9,4144.8,0.002]
[1760290543907,6.65275344,4144.9,4144.8,0.002]
[1760290544271,11.98727044,4144.9,4144.8,0.002]
[1760290544898,11.31612344,4144.9,4144.8,0.002]
[1760290545311,12.65781944,4144.9,4144.8,0.002]
[1760290545692,9.35272744,4144.9,4144.8,0.002]
[1760290546309,14.55834744,4144.9,4144.8,0.002]
[1760290546812,9.51011044,4144.9,4144.8,0.002]
[1760290547380,11.16695244,4144.9,4144.8,0.002]
[1760290548380,14.97247644,4144.9,4144.8,0.002]
[1760290548580,11.88169844,4144.9,4144.8,0.002]
[1760290549330,12.51529844,4144.9,4144.8,0.002]
[1760290549482,21.64778744,4144.9,4144.8,0.002]
[1760290550323,20.41213444,4144.9,4144.8,0.002]
[1760290550629,19.57808544,4144.9,4144.8,0.002]
[1760290551177,4.7214,4144.9,4144.8,0.002]
[1760290551412,5.386275,4144.9,4144.8,0.002]
[1760290551687,4.33260344,4144.9,4144.8,0.002]
[1760290552028,1.92,4144.9,4144.8,0.002]
[1760290552226,4.33260344,4144.9,4144.8,0.002]
[1760290552378,7.58244044,4144.9,4144.8,0.002]
[1760290552583,8.21604044,4144.9,4144.8,0.002]
[1760290553191,4.91620344,4144.9,4144.8,0.002]
[1760290553390,19.69240644,4144.9,4144.8,0.002]
[1760290553695,19.79140644,4144.9,4144.8,0.002]
[1760290553891,19.10852344,4144.9,4144.8,0.002]
[1760290554205,18.54623444,4144.9,4144.8,0.002]
[1760290554522,19.09926044,4144.9,4144.8,0.002]
[1760290555387,22.07539844,4144.9,4144.8,0.002]
[1760290556510,22.30783544,4144.9,4144.8,0.002]
[1760290557190,23.74783544,4144.9,4144.8,0.002]
[1760290557387,40.37377818,4144.9,4144.8,0.002]
[1760290557583,36.04673518,4144.9,4144.8,0.002]
[1760290558509,43.40050818,4144.9,4144.8,0.002]
[1760290559426,47.73633018,4144.9,4144.8,0.002]
[1760290559790,0.6336,4144.6,4144.3,1e-08]
[1760290560002,32.6115305,4144.4,4144.3,1e-08]
[1760290560292,16.5163085,4144.4,4144.3,1e-08]
[1760290560516,19.8522155,4144.4,4144.3,1e-08]
[1760290560861,20.14893804,4144.4,4144.3,1e-08]
[1760290561393,35.36221704,4144.4,4144.3,1e-08]
[1760290561791,34.91139704,4144.4,4144.3,1e-08]
[1760290562023,8.2132205,4144.4,4144.3,1e-08]
[1760290562427,23.0441935,4144.4,4144.3,1e-08]
[1760290562628,22.9817935,4144.4,4144.3,1e-08]
[1760290562817,32.64608624,4144.4,4144.3,1e-08]
[1760290563024,44.84743286,4143.7,4143.6,1e-08]
[1760290563211,46.76743286,4143.7,4143.6,1e-08]
[1760290563526,4.123059,4143.7,4143.6,1e-08]
[1760290563697,6.53636112,4143.7,4143.6,1e-08]
[1760290564194,7.16996112,4143.7,4143.6,1e-08]
[1760290564391,5.06710212,4143.7,4143.6,1e-08]
[1760290564641,35.06710212,4143.7,4143.6,1e-08]
[1760290564812,26.73282412,4143.7,4143.6,1e-08]
[1760290565524,32.56327312,4143.7,4143.6,1e-08]
[1760290565835,32.56327312,4143.7,4142.8,0.002]
[1760290565836,34.96736813,4142.9,4142.8,0.002]
[1760290566042,25.34458561,4142.0,4141.9,0.002]
[1760290566215,35.94254635,4142.0,4141.9,0.002]
[1760290566540,50.19193335,4142.0,4141.9,0.002]
[1760290566712,39.59514335,4142.0,4141.9,0.002]
[1760290567040,31.71757755,4142.0,4141.9,0.002]
[1760290567255,34.13187016,4142.0,4141.9,0.002]
[1760290567617,12.71494661,4142.0,4141.9,0.002]
[1760290567927,11.09445741,4142.0,4141.9,0.002]
[1760290568326,11.09445741,4142.0,4139.2,3.38192331]
[1760290568327,11.39117995,4142.0,4139.2,0.966]
[1760290568527,11.39117995,4142.0,4138.6,0.22]
[1760290568528,2.364808,4140.3,4139.4,2.41580201]
[1760290568748,2.4151958,4140.5,4138.6,0.22]
[1760290569040,1.92,4140.3,4138.6,0.22]
[1760290569242,0.1326,4140.4,4138.7,0.4283]
[1760290569542,0.1326,4140.4,4138.9,2.41610089]
[1760290569745,1.92,4140.3,4138.9,2.41610089]
[1760290569944,2.0526,4140.4,4139.0,2.41604252]
[1760290570121,2.0526,4140.4,4138.7,0.4283]
[1760290570122,0.1326,4140.4,4139.8,2.41556685]
[1760290570441,0.1326,4140.4,4139.8,2.41556369]
[1760290570659,0.1326,4140.4,4139.4,2.41578137]
[1760290571122,0.1326,4140.9,4139.3,2.41586741]
[1760290571456,0.1326,4140.9,4138.6,0.22]
[1760290571457,2.41513344,4140.6,4139.9,2.41550811]
[1760290571614,1.92,4140.4,4139.9,2.41550811]
[1760290571819,0.1326,4140.3,4139.9,2.41550811]
[1760290572126,0.1326,4140.3,4138.6,0.22]
[1760290572127,4.33560158,4139.8,4139.0,2.41602819]
[1760290572457,0.1326,4139.7,4139.0,2.41602819]
[1760290572752,1.92,4139.6,4138.8,2.41611455]
[1760290572917,1.92,4139.6,4138.8,2.41610687]
[1760290572918,0.1326,4139.5,4138.8,2.41610687]
[1760290573118,0.1326,4139.5,4138.2,2.41650052]
[1760290573119,2.41610791,4138.9,4137.9,0.002]
[1760290573427,2.41607537,4139.0,4137.9,0.002]
[1760290573632,2.0526,4138.8,4138.1,2.41652247]
[1760290573850,0.1326,4138.8,4138.4,2.41637816]
[1760290574050,0.1326,4139.4,4138.2,2.41646073]
[1760290574219,1.92,4139.2,4137.9,0.002]
[1760290574549,2.41604252,4139.0,4137.9,0.002]
[1760290574727,1.92,4138.8,4137.9,0.002]
[1760290575051,2.349588,4138.8,4138.0,2.41661444]
[1760290575252,0.1326,4138.7,4137.9,0.002]
[1760290575418,13.93860141,4148.4,4137.9,0.002]
[1760290575419,0.1326,4139.3,4137.9,0.002]
[1760290575615,0.1208,4138.4,4138.3,2.41843078]
[1760290576137,0.1326,4139.6,4138.3,0.002]
[1760290576337,0.1208,4138.7,4138.6,2.41627603]
[1760290577630,0.2534,4138.7,4138.3,0.002]
[1760290577946,2.4163928,4138.4,4138.3,0.002]
[1760290578248,9.8666598,4138.4,4138.3,0.002]
[1760290578419,7.6976368,4138.4,4138.3,0.002]
[1760290579126,25.6834318,4138.4,4138.3,0.002]
[1760290580131,25.8644788,4138.4,4138.3,0.002]
[1760290580339,17.5686808,4138.4,4138.3,0.002]
[1760290581056,5.1025928,4138.4,4138.3,0.002]
[1760290581225,27.2144568,4138.4,4138.3,0.002]
[1760290581720,25.3624528,4138.4,4138.3,0.002]
[1760290581923,22.2589808,4138.4,4138.3,0.002]
[1760290582119,28.86250334,4138.4,4138.3,0.002]
[1760290582351,33.05022638,4138.0,4137.9,0.002]
[1760290582571,24.88671742,4137.5,4135.9,0.002]
[1760290582725,24.40691142,4137.5,4135.9,0.002]
[1760290582924,24.83623396,4137.5,4135.9,0.002]
[1760290583255,16.45521296,4137.5,4135.9,0.002]
[1760290583636,15.97829896,4137.5,4135.9,0.002]
[1760290583834,14.73086596,4137.5,4135.9,2.41983337]
[1760290584041,35.39984096,4137.5,4135.9,0.002]
[1760290584646,23.17087696,4137.5,4135.9,0.002]
[1760290585073,11.11019242,4137.5,4135.9,0.002]
[1760290585372,11.11019242,4137.5,4136.5,2.41749604]
[1760290585373,5.275635,4137.5,4136.5,2.41749604]
[1760290585527,5.275635,4137.5,4135.9,0.002]
[1760290585729,8.32615342,4137.5,4135.9,0.002]
[1760290585921,7.69255342,4137.5,4135.9,0.002]
[1760290586127,37.60383416,4137.5,4135.9,0.002]
[1760290586366,35.87677016,4137.5,4135.9,0.002]
[1760290586526,36.34702002,4137.5,4135.9,0.002]